Workbook

Sheet 1-Faktor-Schwellwertmodell
C1: 1-Faktor-Schwellwertmodell
C2: J. Lemm, 2011
C3: grüne Felder = Eingabefelder | J3: erw. A. | K3: erw. Verl. | M3: Rho | R3: VAR % | S3: EL exakt
C4: gelbe Felder = Ergebnisfelder | J4: =SUM(INDIRECT("f8:f"&(7+$C$6))) -> 5 | K4: =SUMPRODUCT(INDIRECT("d8:d"&(7+$C$6)),INDIRECT("e8:e"&(7+$C$6)),INDIRECT("f8:f"&(7+$C$6))) -> 2500 | M4: 0.15 | R4: 0.95 | S4: =K4 -> 2500
C5: Anzahl | D5: Min_Loss | E5: Max_Loss | G5: Systemat. Faktor | H5: X | J5: Summe A. | K5: Summe Verl. | M5: N_Bins | P5: Summe | Q5: Summe | R5: VAR € | S5: EL emp.
C6: =MAX(C8:C10008) -> 100 | D6: 0 | E6: =SUMPRODUCT(INDIRECT("D8:D"&(7+$C$6)),INDIRECT("E8:E"&(7+$C$6))) -> 50000 | G6: 1 | H6: =NORMINV(RAND(),0,1) -> -2.535118405 | J6: =SUM(INDIRECT("J8:J"&(7+$C$6))) -> 31 | K6: =SUM(INDIRECT("K8:K"&(7+$C$6))) -> 15500 | M6: =MAX(M8:M108) -> 101 | P6: =SUM(INDIRECT("P8:P"&7+$M$6)) -> 1000 | Q6: =SUM(INDIRECT("q8:q"&7+$M$6)) -> 1 | R6: =IF(P6>0,INDIRECT("o"&7+VLOOKUP(R4,R8:T108,3)+1),"") -> 7920.792079 | S6: =SUMPRODUCT(INDIRECT("Q8:Q"&7+M6),INDIRECT("S8:S"&7+M6)) -> 2719.80198
C7: Kunde | D7: EAD(T€) | E7: LGD% | F7: PD | G7: Schwelle | H7: eps_i | I7: y_i | J7: Ausfall | K7: Verlust | M7: Verlust | N7: von | O7: bis | P7: Obs | Q7: relativ | R7: kumuliert | S7: mittl. Verl. | T7: N
C8: 1 | D8: 1000 | E8: 0.5 | F8: 0.05 | G8: =NORMINV(F8,0,1) -> -1.644853627 | H8: =NORMINV(RAND(),0,1) -> -0.989252771 | I8: =SQRT($M$4)*$H$6+SQRT(1-$M$4)*H8 -> -1.893893126 | J8: =IF(I8<=G8,1,0) -> 1 | K8: =J8*E8*D8 -> 500 | M8: 1 | N8: =D6 -> 0 | O8: =N8+($E$6-$D$6)/$M$6 -> 495.049505 | P8: 102 | Q8: =IF($P$6>0,P8/$P$6,"") -> 0.102 | R8: =Q8 -> 0.102 | S8: =(N8+O8)/2 -> 247.5247525 | T8: 1
C9: 2 | D9: 1000 | E9: 0.5 | F9: 0.05 | G9: =NORMINV(F9,0,1) -> -1.644853627 | H9: =NORMINV(RAND(),0,1) -> -0.7441527635 | I9: =SQRT($M$4)*$H$6+SQRT(1-$M$4)*H9 -> -1.667922085 | J9: =IF(I9<=G9,1,0) -> 1 | K9: =J9*E9*D9 -> 500 | M9: 2 | N9: =O8 -> 495.049505 | O9: =N9+($E$6-$D$6)/$M$6 -> 990.0990099 | P9: 140 | Q9: =IF($P$6>0,P9/$P$6,"") -> 0.14 | R9: =IF(AND(ISNUMBER(R8),ISNUMBER(Q9)),R8+Q9,0) -> 0.242 | S9: =(N9+O9)/2 -> 742.5742574 | T9: 2
C10: 3 | D10: 1000 | E10: 0.5 | F10: 0.05 | G10: -1.644853627 | H10: -0.1439606369 | I10: -1.114572286 | J10: 0 | K10: 0 | M10: 3 | N10: =O9 -> 990.0990099 | O10: 1485.148515 | P10: 140 | Q10: 0.14 | R10: =IF(AND(ISNUMBER(R9),ISNUMBER(Q10)),R9+Q10,0) -> 0.382 | S10: 1237.623762 | T10: 3
C11: 4 | D11: 1000 | E11: 0.5 | F11: 0.05 | G11: -1.644853627 | H11: 0.385841042 | I11: -0.6261192723 | J11: 0 | K11: 0 | M11: 4 | N11: 1485.148515 | O11: 1980.19802 | P11: 107 | Q11: 0.107 | R11: 0.489 | S11: 1732.673267 | T11: 4
C12: 5 | D12: 1000 | E12: 0.5 | F12: 0.05 | G12: -1.644853627 | H12: -1.443587582 | I12: -2.312769125 | J12: 1 | K12: 500 | M12: 5 | N12: 1980.19802 | O12: 2475.247525 | P12: 99 | Q12: 0.099 | R12: 0.588 | S12: 2227.722772 | T12: 5
C13: 6 | D13: 1000 | E13: 0.5 | F13: 0.05 | G13: -1.644853627 | H13: 0.8041682121 | I13: -0.240440678 | J13: 0 | K13: 0 | M13: 6 | N13: 2475.247525 | O13: 2970.29703 | P13: 81 | Q13: 0.081 | R13: 0.669 | S13: 2722.772277 | T13: 6
C14: 7 | D14: 1000 | E14: 0.5 | F14: 0.05 | G14: -1.644853627 | H14: 0.8614080828 | I14: -0.1876681249 | J14: 0 | K14: 0 | M14: 7 | N14: 2970.29703 | O14: 3465.346535 | P14: 62 | Q14: 0.062 | R14: 0.731 | S14: 3217.821782 | T14: 7
C15: 8 | D15: 1000 | E15: 0.5 | F15: 0.05 | G15: -1.644853627 | H15: -0.5241513472 | I15: -1.465090801 | J15: 0 | K15: 0 | M15: 8 | N15: 3465.346535 | O15: 3960.39604 | P15: 58 | Q15: 0.058 | R15: 0.789 | S15: 3712.871287 | T15: 8
C16: 9 | D16: 1000 | E16: 0.5 | F16: 0.05 | G16: -1.644853627 | H16: 0.8847197362 | I16: -0.1661758423 | J16: 0 | K16: 0 | M16: 9 | N16: 3960.39604 | O16: 4455.445545 | P16: 38 | Q16: 0.038 | R16: 0.827 | S16: 4207.920792 | T16: 9
C17: 10 | D17: 1000 | E17: 0.5 | F17: 0.05 | G17: -1.644853627 | H17: 0.06258256561 | I17: -0.9241488618 | J17: 0 | K17: 0 | M17: 10 | N17: 4455.445545 | O17: 4950.49505 | P17: 33 | Q17: 0.033 | R17: 0.86 | S17: 4702.970297 | T17: 10
C18: 11 | D18: 1000 | E18: 0.5 | F18: 0.05 | G18: =NORMINV(F18,0,1) -> -1.644853627 | H18: -1.323911975 | I18: -2.202433668 | J18: =IF(I18<=G18,1,0) -> 1 | K18: =J18*E18*D18 -> 500 | M18: 11 | N18: 4950.49505 | O18: 5445.544554 | P18: 21 | Q18: 0.021 | R18: 0.881 | S18: 5198.019802 | T18: 11
C19: 12 | D19: 1000 | E19: 0.5 | F19: 0.05 | G19: -1.644853627 | H19: 0.005476887915 | I19: -0.9767976952 | J19: 0 | K19: 0 | M19: 12 | N19: =O18 -> 5445.544554 | O19: =N19+($E$6-$D$6)/$M$6 -> 5940.594059 | P19: 15 | Q19: =IF($P$6>0,P19/$P$6,"") -> 0.015 | R19: 0.896 | S19: =(N19+O19)/2 -> 5693.069307 | T19: 12
C20: 13 | D20: 1000 | E20: 0.5 | F20: 0.05 | G20: -1.644853627 | H20: 1.087645794 | I20: 0.02091273844 | J20: 0 | K20: 0 | M20: 13 | N20: 5940.594059 | O20: 6435.643564 | P20: 16 | Q20: 0.016 | R20: 0.912 | S20: 6188.118812 | T20: 13
C21: 14 | D21: 1000 | E21: 0.5 | F21: 0.05 | G21: -1.644853627 | H21: -0.9363307424 | I21: -1.845101427 | J21: 1 | K21: 500 | M21: 14 | N21: 6435.643564 | O21: 6930.693069 | P21: 12 | Q21: 0.012 | R21: 0.924 | S21: 6683.168317 | T21: 14
C22: 15 | D22: 1000 | E22: 0.5 | F22: 0.05 | G22: -1.644853627 | H22: -1.423901411 | I22: -2.294619373 | J22: 1 | K22: 500 | M22: 15 | N22: 6930.693069 | O22: 7425.742574 | P22: 18 | Q22: 0.018 | R22: 0.942 | S22: 7178.217822 | T22: 15
C23: 16 | D23: 1000 | E23: 0.5 | F23: 0.05 | G23: -1.644853627 | H23: 0.3000068668 | I23: -0.7052544717 | J23: 0 | K23: 0 | M23: 16 | N23: 7425.742574 | O23: 7920.792079 | P23: 12 | Q23: 0.012 | R23: 0.954 | S23: 7673.267327 | T23: 16
C24: 17 | D24: 1000 | E24: 0.5 | F24: 0.05 | G24: -1.644853627 | H24: 1.15794444 | I24: 0.08572488776 | J24: 0 | K24: 0 | M24: 17 | N24: 7920.792079 | O24: 8415.841584 | P24: 7 | Q24: 0.007 | R24: 0.961 | S24: 8168.316832 | T24: 17
C25: 18 | D25: 1000 | E25: 0.5 | F25: 0.05 | G25: -1.644853627 | H25: -0.5023769842 | I25: -1.44501583 | J25: 0 | K25: 0 | M25: 18 | N25: 8415.841584 | O25: 8910.891089 | P25: 10 | Q25: 0.01 | R25: 0.971 | S25: 8663.366337 | T25: 18
C26: 19 | D26: 1000 | E26: 0.5 | F26: 0.05 | G26: -1.644853627 | H26: 0.6176547825 | I26: -0.4123975637 | J26: 0 | K26: 0 | M26: 19 | N26: 8910.891089 | O26: 9405.940594 | P26: 8 | Q26: 0.008 | R26: 0.979 | S26: 9158.415842 | T26: 19
C27: 20 | D27: 1000 | E27: 0.5 | F27: 0.05 | G27: -1.644853627 | H27: 0.7195345972 | I27: -0.3184690156 | J27: 0 | K27: 0 | M27: 20 | N27: 9405.940594 | O27: 9900.990099 | P27: 4 | Q27: 0.004 | R27: 0.983 | S27: 9653.465347 | T27: 20
C28: 21 | D28: 1000 | E28: 0.5 | F28: 0.05 | G28: -1.644853627 | H28: 1.070174488 | I28: 0.004804990472 | J28: 0 | K28: 0 | M28: 21 | N28: 9900.990099 | O28: 10396.0396 | P28: 3 | Q28: 0.003 | R28: 0.986 | S28: 10148.51485 | T28: 21
C29: 22 | D29: 1000 | E29: 0.5 | F29: 0.05 | G29: -1.644853627 | H29: -1.678409102 | I29: -2.52926387 | J29: 1 | K29: 500 | M29: 22 | N29: =O28 -> 10396.0396 | O29: =N29+($E$6-$D$6)/$M$6 -> 10891.08911 | P29: 2 | Q29: =IF($P$6>0,P29/$P$6,"") -> 0.002 | R29: =IF(AND(ISNUMBER(R28),ISNUMBER(Q29)),R28+Q29,0) -> 0.988 | S29: =(N29+O29)/2 -> 10643.56436 | T29: 22
C30: 23 | D30: 1000 | E30: 0.5 | F30: 0.05 | G30: -1.644853627 | H30: 0.7643630157 | I30: -0.2771392559 | J30: 0 | K30: 0 | M30: 23 | N30: 10891.08911 | O30: 11386.13861 | P30: 4 | Q30: 0.004 | R30: 0.992 | S30: 11138.61386 | T30: 23
C31: 24 | D31: 1000 | E31: 0.5 | F31: 0.05 | G31: -1.644853627 | H31: -1.011641484 | I31: -1.9145345 | J31: 1 | K31: 500 | M31: 24 | N31: 11386.13861 | O31: 11881.18812 | P31: 1 | Q31: 0.001 | R31: 0.993 | S31: 11633.66337 | T31: 24
C32: 25 | D32: 1000 | E32: 0.5 | F32: 0.05 | G32: -1.644853627 | H32: 0.7488100371 | I32: -0.2914783936 | J32: 0 | K32: 0 | M32: 25 | N32: 11881.18812 | O32: 12376.23762 | P32: 2 | Q32: 0.002 | R32: 0.995 | S32: 12128.71287 | T32: 25
C33: 26 | D33: 1000 | E33: 0.5 | F33: 0.05 | G33: -1.644853627 | H33: -1.38518558 | I33: -2.25892514 | J33: 1 | K33: 500 | M33: 26 | N33: 12376.23762 | O33: 12871.28713 | P33: 1 | Q33: 0.001 | R33: 0.996 | S33: 12623.76238 | T33: 26
C34: 27 | D34: 1000 | E34: 0.5 | F34: 0.05 | G34: -1.644853627 | H34: -1.643644419 | I34: -2.497212416 | J34: 1 | K34: 500 | M34: 27 | N34: 12871.28713 | O34: 13366.33663 | Q34: 0 | R34: 0.996 | S34: 13118.81188 | T34: 27
C35: 28 | D35: 1000 | E35: 0.5 | F35: 0.05 | G35: -1.644853627 | H35: 0.4321024372 | I35: -0.5834683734 | J35: 0 | K35: 0 | M35: 28 | N35: 13366.33663 | O35: 13861.38614 | Q35: 0 | R35: 0.996 | S35: 13613.86139 | T35: 28
C36: 29 | D36: 1000 | E36: 0.5 | F36: 0.05 | G36: -1.644853627 | H36: -1.381699957 | I36: -2.255711555 | J36: 1 | K36: 500 | M36: 29 | N36: 13861.38614 | O36: 14356.43564 | Q36: 0 | R36: 0.996 | S36: 14108.91089 | T36: 29
C37: 30 | D37: 1000 | E37: 0.5 | F37: 0.05 | G37: -1.644853627 | H37: -0.6897652784 | I37: -1.617779301 | J37: 0 | K37: 0 | M37: 30 | N37: 14356.43564 | O37: 14851.48515 | P37: 1 | Q37: 0.001 | R37: 0.997 | S37: 14603.9604 | T37: 30
C38: 31 | D38: 1000 | E38: 0.5 | F38: 0.05 | G38: -1.644853627 | H38: -0.859869281 | I38: -1.774607443 | J38: 1 | K38: 500 | M38: 31 | N38: 14851.48515 | O38: 15346.53465 | P38: 1 | Q38: 0.001 | R38: 0.998 | S38: 15099.0099 | T38: 31
C39: 32 | D39: 1000 | E39: 0.5 | F39: 0.05 | G39: -1.644853627 | H39: -0.490043962 | I39: -1.433645346 | J39: 0 | K39: 0 | M39: 32 | N39: 15346.53465 | O39: 15841.58416 | Q39: 0 | R39: 0.998 | S39: 15594.05941 | T39: 32
C40: 33 | D40: 1000 | E40: 0.5 | F40: 0.05 | G40: -1.644853627 | H40: -1.477780596 | I40: -2.344293527 | J40: 1 | K40: 500 | M40: 33 | N40: 15841.58416 | O40: 16336.63366 | Q40: 0 | R40: 0.998 | S40: 16089.10891 | T40: 33
C41: 34 | D41: 1000 | E41: 0.5 | F41: 0.05 | G41: -1.644853627 | H41: -0.7311822067 | I41: -1.655963822 | J41: 1 | K41: 500 | M41: 34 | N41: 16336.63366 | O41: 16831.68317 | Q41: 0 | R41: 0.998 | S41: 16584.15842 | T41: 34
C42: 35 | D42: 1000 | E42: 0.5 | F42: 0.05 | G42: -1.644853627 | H42: 0.4019184175 | I42: -0.6112966645 | J42: 0 | K42: 0 | M42: 35 | N42: 16831.68317 | O42: 17326.73267 | P42: 1 | Q42: 0.001 | R42: 0.999 | S42: 17079.20792 | T42: 35
C43: 36 | D43: 1000 | E43: 0.5 | F43: 0.05 | G43: -1.644853627 | H43: -0.5085555336 | I43: -1.450712171 | J43: 0 | K43: 0 | M43: 36 | N43: 17326.73267 | O43: 17821.78218 | Q43: 0 | R43: 0.999 | S43: 17574.25743 | T43: 36
C44: 37 | D44: 1000 | E44: 0.5 | F44: 0.05 | G44: -1.644853627 | H44: -0.9634531175 | I44: -1.870107021 | J44: 1 | K44: 500 | M44: 37 | N44: 17821.78218 | O44: 18316.83168 | Q44: 0 | R44: 0.999 | S44: 18069.30693 | T44: 37
C45: 38 | D45: 1000 | E45: 0.5 | F45: 0.05 | G45: -1.644853627 | H45: 0.8226650552 | I45: -0.2233874313 | J45: 0 | K45: 0 | M45: 38 | N45: 18316.83168 | O45: 18811.88119 | P45: 1 | Q45: 0.001 | R45: 1 | S45: 18564.35644 | T45: 38
C46: 39 | D46: 1000 | E46: 0.5 | F46: 0.05 | G46: -1.644853627 | H46: -0.6632001858 | I46: -1.593287496 | J46: 0 | K46: 0 | M46: 39 | N46: 18811.88119 | O46: 19306.93069 | Q46: 0 | R46: 1 | S46: 19059.40594 | T46: 39
C47: 40 | D47: 1000 | E47: 0.5 | F47: 0.05 | G47: -1.644853627 | H47: -0.04855495009 | I47: -1.026612588 | J47: 0 | K47: 0 | M47: 40 | N47: 19306.93069 | O47: 19801.9802 | Q47: 0 | R47: 1 | S47: 19554.45545 | T47: 40
C48: 41 | D48: 1000 | E48: 0.5 | F48: 0.05 | G48: -1.644853627 | H48: 0.02029413706 | I48: -0.9631368665 | J48: 0 | K48: 0 | M48: 41 | N48: 19801.9802 | O48: 20297.0297 | Q48: 0 | R48: 1 | S48: 20049.50495 | T48: 41
C49: 42 | D49: 1000 | E49: 0.5 | F49: 0.05 | G49: -1.644853627 | H49: -2.224896587 | I49: -3.033100436 | J49: 1 | K49: 500 | M49: 42 | N49: 20297.0297 | O49: 20792.07921 | Q49: 0 | R49: 1 | S49: 20544.55446 | T49: 42
C50: 43 | D50: 1000 | E50: 0.5 | F50: 0.05 | G50: -1.644853627 | H50: -0.114929223 | I50: -1.087806644 | J50: 0 | K50: 0 | M50: 43 | N50: 20792.07921 | O50: 21287.12871 | Q50: 0 | R50: 1 | S50: 21039.60396 | T50: 43
C51: 44 | D51: 1000 | E51: 0.5 | F51: 0.05 | G51: -1.644853627 | H51: -1.014545999 | I51: -1.917212331 | J51: 1 | K51: 500 | M51: 44 | N51: 21287.12871 | O51: 21782.17822 | Q51: 0 | R51: 1 | S51: 21534.65347 | T51: 44
C52: 45 | D52: 1000 | E52: 0.5 | F52: 0.05 | G52: -1.644853627 | H52: 2.562835195 | I52: 1.380970165 | J52: 0 | K52: 0 | M52: 45 | N52: 21782.17822 | O52: 22277.22772 | Q52: 0 | R52: 1 | S52: 22029.70297 | T52: 45
C53: 46 | D53: 1000 | E53: 0.5 | F53: 0.05 | G53: -1.644853627 | H53: 0.06708344018 | I53: -0.9199992604 | J53: 0 | K53: 0 | M53: 46 | N53: 22277.22772 | O53: 22772.27723 | Q53: 0 | R53: 1 | S53: 22524.75248 | T53: 46
C54: 47 | D54: 1000 | E54: 0.5 | F54: 0.05 | G54: -1.644853627 | H54: -1.668105922 | I54: -2.519764808 | J54: 1 | K54: 500 | M54: 47 | N54: 22772.27723 | O54: 23267.32673 | Q54: 0 | R54: 1 | S54: 23019.80198 | T54: 47
C55: 48 | D55: 1000 | E55: 0.5 | F55: 0.05 | G55: -1.644853627 | H55: -2.053076059 | I55: -2.874689737 | J55: 1 | K55: 500 | M55: 48 | N55: 23267.32673 | O55: 23762.37624 | Q55: 0 | R55: 1 | S55: 23514.85149 | T55: 48
C56: 49 | D56: 1000 | E56: 0.5 | F56: 0.05 | G56: -1.644853627 | H56: 1.617480428 | I56: 0.5093961356 | J56: 0 | K56: 0 | M56: 49 | N56: 23762.37624 | O56: 24257.42574 | Q56: 0 | R56: 1 | S56: 24009.90099 | T56: 49
C57: 50 | D57: 1000 | E57: 0.5 | F57: 0.05 | G57: -1.644853627 | H57: 2.048540211 | I57: 0.9068136184 | J57: 0 | K57: 0 | M57: 50 | N57: 24257.42574 | O57: 24752.47525 | Q57: 0 | R57: 1 | S57: 24504.9505 | T57: 50
C58: 51 | D58: 1000 | E58: 0.5 | F58: 0.05 | G58: -1.644853627 | H58: 0.8752363728 | I58: -0.1749190714 | J58: 0 | K58: 0 | M58: 51 | N58: 24752.47525 | O58: 25247.52475 | Q58: 0 | R58: 1 | S58: 25000 | T58: 51
C59: 52 | D59: 1000 | E59: 0.5 | F59: 0.05 | G59: -1.644853627 | H59: 0.4111756696 | I59: -0.6027618998 | J59: 0 | K59: 0 | M59: 52 | N59: 25247.52475 | O59: 25742.57426 | Q59: 0 | R59: 1 | S59: 25495.0495 | T59: 52
C60: 53 | D60: 1000 | E60: 0.5 | F60: 0.05 | G60: -1.644853627 | H60: -0.9034041453 | I60: -1.814744604 | J60: 1 | K60: 500 | M60: 53 | N60: 25742.57426 | O60: 26237.62376 | Q60: 0 | R60: 1 | S60: 25990.09901 | T60: 53
C61: 54 | D61: 1000 | E61: 0.5 | F61: 0.05 | G61: -1.644853627 | H61: -1.541399476 | I61: -2.402947236 | J61: 1 | K61: 500 | M61: 54 | N61: 26237.62376 | O61: 26732.67327 | Q61: 0 | R61: 1 | S61: 26485.14851 | T61: 54
C62: 55 | D62: 1000 | E62: 0.5 | F62: 0.05 | G62: -1.644853627 | H62: -0.3307770625 | I62: -1.28680852 | J62: 0 | K62: 0 | M62: 55 | N62: 26732.67327 | O62: 27227.72277 | Q62: 0 | R62: 1 | S62: 26980.19802 | T62: 55
C63: 56 | D63: 1000 | E63: 0.5 | F63: 0.05 | G63: -1.644853627 | H63: 0.3821870412 | I63: -0.6294880946 | J63: 0 | K63: 0 | M63: 56 | N63: 27227.72277 | O63: 27722.77228 | Q63: 0 | R63: 1 | S63: 27475.24752 | T63: 56
C64: 57 | D64: 1000 | E64: 0.5 | F64: 0.05 | G64: -1.644853627 | H64: 0.7896342144 | I64: -0.2538403619 | J64: 0 | K64: 0 | M64: 57 | N64: 27722.77228 | O64: 28217.82178 | Q64: 0 | R64: 1 | S64: 27970.29703 | T64: 57
C65: 58 | D65: 1000 | E65: 0.5 | F65: 0.05 | G65: -1.644853627 | H65: -0.6597151787 | I65: -1.590074478 | J65: 0 | K65: 0 | M65: 58 | N65: 28217.82178 | O65: 28712.87129 | Q65: 0 | R65: 1 | S65: 28465.34653 | T65: 58
C66: 59 | D66: 1000 | E66: 0.5 | F66: 0.05 | G66: -1.644853627 | H66: -0.09015857605 | I66: -1.064969236 | J66: 0 | K66: 0 | M66: 59 | N66: 28712.87129 | O66: 29207.92079 | Q66: 0 | R66: 1 | S66: 28960.39604 | T66: 59
C67: 60 | D67: 1000 | E67: 0.5 | F67: 0.05 | G67: -1.644853627 | H67: -0.9587188687 | I67: -1.86574226 | J67: 1 | K67: 500 | M67: 60 | N67: 29207.92079 | O67: 29702.9703 | Q67: 0 | R67: 1 | S67: 29455.44554 | T67: 60
C68: 61 | D68: 1000 | E68: 0.5 | F68: 0.05 | G68: -1.644853627 | H68: -1.00404056 | I68: -1.907526794 | J68: 1 | K68: 500 | M68: 61 | N68: 29702.9703 | O68: 30198.0198 | Q68: 0 | R68: 1 | S68: 29950.49505 | T68: 61
C69: 62 | D69: 1000 | E69: 0.5 | F69: 0.05 | G69: -1.644853627 | H69: 0.4145847804 | I69: -0.5996188549 | J69: 0 | K69: 0 | M69: 62 | N69: 30198.0198 | O69: 30693.06931 | Q69: 0 | R69: 1 | S69: 30445.54455 | T69: 62
C70: 63 | D70: 1000 | E70: 0.5 | F70: 0.05 | G70: -1.644853627 | H70: -0.3147781265 | I70: -1.272058229 | J70: 0 | K70: 0 | M70: 63 | N70: 30693.06931 | O70: 31188.11881 | Q70: 0 | R70: 1 | S70: 30940.59406 | T70: 63
C71: 64 | D71: 1000 | E71: 0.5 | F71: 0.05 | G71: -1.644853627 | H71: -0.008983743876 | I71: -0.990129739 | J71: 0 | K71: 0 | M71: 64 | N71: 31188.11881 | O71: 31683.16832 | Q71: 0 | R71: 1 | S71: 31435.64356 | T71: 64
C72: 65 | D72: 1000 | E72: 0.5 | F72: 0.05 | G72: -1.644853627 | H72: 0.147777654 | I72: -0.8456028712 | J72: 0 | K72: 0 | M72: 65 | N72: 31683.16832 | O72: 32178.21782 | Q72: 0 | R72: 1 | S72: 31930.69307 | T72: 65
C73: 66 | D73: 1000 | E73: 0.5 | F73: 0.05 | G73: -1.644853627 | H73: =NORMINV(RAND(),0,1) -> -0.4388862815 | I73: =SQRT($M$4)*$H$6+SQRT(1-$M$4)*H73 -> -1.386480295 | J73: 0 | K73: 0 | M73: 66 | N73: 32178.21782 | O73: 32673.26733 | Q73: 0 | R73: 1 | S73: 32425.74257 | T73: 66
C74: 67 | D74: 1000 | E74: 0.5 | F74: 0.05 | G74: -1.644853627 | H74: -0.7658142861 | I74: -1.687893022 | J74: 1 | K74: 500 | M74: 67 | N74: 32673.26733 | O74: 33168.31683 | Q74: 0 | R74: 1 | S74: 32920.79208 | T74: 67
C75: 68 | D75: 1000 | E75: 0.5 | F75: 0.05 | G75: -1.644853627 | H75: 0.1881521456 | I75: -0.8083794292 | J75: 0 | K75: 0 | M75: 68 | N75: 33168.31683 | O75: 33663.36634 | Q75: 0 | R75: 1 | S75: 33415.84158 | T75: 68
C76: 69 | D76: 1000 | E76: 0.5 | F76: 0.05 | G76: -1.644853627 | H76: 2.61618386 | I76: 1.430155204 | J76: 0 | K76: 0 | M76: 69 | N76: 33663.36634 | O76: 34158.41584 | Q76: 0 | R76: 1 | S76: 33910.89109 | T76: 69
C77: 70 | D77: 1000 | E77: 0.5 | F77: 0.05 | G77: -1.644853627 | H77: 1.285456595 | I77: 0.2032852859 | J77: 0 | K77: 0 | M77: 70 | N77: 34158.41584 | O77: 34653.46535 | Q77: 0 | R77: 1 | S77: 34405.94059 | T77: 70
C78: 71 | D78: 1000 | E78: 0.5 | F78: 0.05 | G78: -1.644853627 | H78: 0.555764843 | I78: -0.4694572685 | J78: 0 | K78: 0 | M78: 71 | N78: 34653.46535 | O78: 35148.51485 | Q78: 0 | R78: 1 | S78: 34900.9901 | T78: 71
C79: 72 | D79: 1000 | E79: 0.5 | F79: 0.05 | G79: -1.644853627 | H79: 2.161933077 | I79: 1.011356675 | J79: 0 | K79: 0 | M79: 72 | N79: 35148.51485 | O79: 35643.56436 | Q79: 0 | R79: 1 | S79: 35396.0396 | T79: 72
C80: 73 | D80: 1000 | E80: 0.5 | F80: 0.05 | G80: -1.644853627 | H80: -1.984798148 | I80: -2.811740613 | J80: 1 | K80: 500 | M80: 73 | N80: 35643.56436 | O80: 36138.61386 | Q80: 0 | R80: 1 | S80: 35891.08911 | T80: 73
C81: 74 | D81: 1000 | E81: 0.5 | F81: 0.05 | G81: -1.644853627 | H81: -2.000825709 | I81: -2.826517294 | J81: 1 | K81: 500 | M81: 74 | N81: 36138.61386 | O81: 36633.66337 | Q81: 0 | R81: 1 | S81: 36386.13861 | T81: 74
C82: 75 | D82: 1000 | E82: 0.5 | F82: 0.05 | G82: =NORMINV(F82,0,1) -> -1.644853627 | H82: 1.514129623 | I82: 0.4141114008 | J82: =IF(I82<=G82,1,0) -> 0 | K82: =J82*E82*D82 -> 0 | M82: 75 | N82: 36633.66337 | O82: 37128.71287 | Q82: 0 | R82: 1 | S82: 36881.18812 | T82: 75
C83: 76 | D83: 1000 | E83: 0.5 | F83: 0.05 | G83: -1.644853627 | H83: -0.12161246 | I83: -1.093968284 | J83: 0 | K83: 0 | M83: 76 | N83: 37128.71287 | O83: 37623.76238 | Q83: 0 | R83: 1 | S83: 37376.23762 | T83: 76
C84: 77 | D84: 1000 | E84: 0.5 | F84: 0.05 | G84: -1.644853627 | H84: -0.7768697222 | I84: -1.698085631 | J84: 1 | K84: 500 | M84: 77 | N84: 37623.76238 | O84: 38118.81188 | Q84: 0 | R84: 1 | S84: 37871.28713 | T84: 77
C85: 78 | D85: 1000 | E85: 0.5 | F85: 0.05 | G85: -1.644853627 | H85: -0.5115055993 | I85: -1.453431998 | J85: 0 | K85: 0 | M85: 78 | N85: 38118.81188 | O85: 38613.86139 | Q85: 0 | R85: 1 | S85: 38366.33663 | T85: 78
C86: 79 | D86: 1000 | E86: 0.5 | F86: 0.05 | G86: -1.644853627 | H86: 0.375307461 | I86: -0.6358307541 | J86: 0 | K86: 0 | M86: 79 | N86: 38613.86139 | O86: 39108.91089 | Q86: 0 | R86: 1 | S86: 38861.38614 | T86: 79
C87: 80 | D87: 1000 | E87: 0.5 | F87: 0.05 | G87: -1.644853627 | H87: 0.7758308599 | I87: -0.2665664259 | J87: 0 | K87: 0 | M87: 80 | N87: 39108.91089 | O87: 39603.9604 | Q87: 0 | R87: 1 | S87: 39356.43564 | T87: 80
C88: 81 | D88: 1000 | E88: 0.5 | F88: 0.05 | G88: -1.644853627 | H88: 0.3269595877 | I88: -0.6804052909 | J88: 0 | K88: 0 | M88: 81 | N88: 39603.9604 | O88: 40099.0099 | Q88: 0 | R88: 1 | S88: 39851.48515 | T88: 81
C89: 82 | D89: 1000 | E89: 0.5 | F89: 0.05 | G89: -1.644853627 | H89: -0.9478002468 | I89: -1.855675788 | J89: 1 | K89: 500 | M89: 82 | N89: 40099.0099 | O89: 40594.05941 | Q89: 0 | R89: 1 | S89: 40346.53465 | T89: 82
C90: 83 | D90: 1000 | E90: 0.5 | F90: 0.05 | G90: -1.644853627 | H90: 0.4630366986 | I90: -0.5549483935 | J90: 0 | K90: 0 | M90: 83 | N90: 40594.05941 | O90: 41089.10891 | Q90: 0 | R90: 1 | S90: 40841.58416 | T90: 83
C91: 84 | D91: 1000 | E91: 0.5 | F91: 0.05 | G91: -1.644853627 | H91: 0.699442777 | I91: -0.3369927586 | J91: 0 | K91: 0 | M91: 84 | N91: 41089.10891 | O91: 41584.15842 | Q91: 0 | R91: 1 | S91: 41336.63366 | T91: 84
C92: 85 | D92: 1000 | E92: 0.5 | F92: 0.05 | G92: -1.644853627 | H92: -1.494082922 | I92: -2.359323528 | J92: 1 | K92: 500 | M92: 85 | N92: 41584.15842 | O92: 42079.20792 | Q92: 0 | R92: 1 | S92: 41831.68317 | T92: 85
C93: 86 | D93: 1000 | E93: 0.5 | F93: 0.05 | G93: -1.644853627 | H93: 0.3491475792 | I93: -0.6599489735 | J93: 0 | K93: 0 | M93: 86 | N93: =O92 -> 42079.20792 | O93: =N93+($E$6-$D$6)/$M$6 -> 42574.25743 | Q93: =IF($P$6>0,P93/$P$6,"") -> 0 | R93: =IF(AND(ISNUMBER(R92),ISNUMBER(Q93)),R92+Q93,0) -> 1 | S93: =(N93+O93)/2 -> 42326.73267 | T93: 86
C94: 87 | D94: 1000 | E94: 0.5 | F94: 0.05 | G94: -1.644853627 | H94: 1.284546497 | I94: 0.2024462172 | J94: 0 | K94: 0 | M94: 87 | N94: 42574.25743 | O94: 43069.30693 | Q94: 0 | R94: 1 | S94: 42821.78218 | T94: 87
C95: 88 | D95: 1000 | E95: 0.5 | F95: 0.05 | G95: -1.644853627 | H95: 1.168190779 | I95: 0.09517154605 | J95: 0 | K95: 0 | M95: 88 | N95: 43069.30693 | O95: 43564.35644 | Q95: 0 | R95: 1 | S95: 43316.83168 | T95: 88
C96: 89 | D96: 1000 | E96: 0.5 | F96: 0.05 | G96: -1.644853627 | H96: -0.4123599749 | I96: -1.362024248 | J96: 0 | K96: 0 | M96: 89 | N96: 43564.35644 | O96: 44059.40594 | Q96: 0 | R96: 1 | S96: 43811.88119 | T96: 89
C97: 90 | D97: 1000 | E97: 0.5 | F97: 0.05 | G97: -1.644853627 | H97: 0.2705120689 | I97: -0.7324473318 | J97: 0 | K97: 0 | M97: 90 | N97: 44059.40594 | O97: 44554.45545 | Q97: 0 | R97: 1 | S97: 44306.93069 | T97: 90
C98: 91 | D98: 1000 | E98: 0.5 | F98: 0.05 | G98: -1.644853627 | H98: -0.01250221274 | I98: -0.993373607 | J98: 0 | K98: 0 | M98: 91 | N98: 44554.45545 | O98: 45049.50495 | Q98: 0 | R98: 1 | S98: 44801.9802 | T98: 91
C99: 92 | D99: 1000 | E99: 0.5 | F99: 0.05 | G99: -1.644853627 | H99: 0.6224207853 | I99: -0.4080035263 | J99: 0 | K99: 0 | M99: 92 | N99: 45049.50495 | O99: 45544.55446 | Q99: 0 | R99: 1 | S99: 45297.0297 | T99: 92
C100: 93 | D100: 1000 | E100: 0.5 | F100: 0.05 | G100: -1.644853627 | H100: 1.981802746 | I100: 0.8452847155 | J100: 0 | K100: 0 | M100: 93 | N100: 45544.55446 | O100: 46039.60396 | Q100: 0 | R100: 1 | S100: 45792.07921 | T100: 93
C101: 94 | D101: 1000 | E101: 0.5 | F101: 0.05 | G101: -1.644853627 | H101: -0.5928806177 | I101: -1.528456058 | J101: 0 | K101: 0 | M101: 94 | N101: 46039.60396 | O101: 46534.65347 | Q101: 0 | R101: 1 | S101: 46287.12871 | T101: 94
C102: 95 | D102: 1000 | E102: 0.5 | F102: 0.05 | G102: -1.644853627 | H102: -0.9420572802 | I102: -1.850381034 | J102: 1 | K102: 500 | M102: 95 | N102: 46534.65347 | O102: 47029.70297 | Q102: 0 | R102: 1 | S102: 46782.17822 | T102: 95
C103: 96 | D103: 1000 | E103: 0.5 | F103: 0.05 | G103: -1.644853627 | H103: -1.058453571 | I103: -1.957693112 | J103: 1 | K103: 500 | M103: 96 | N103: 47029.70297 | O103: 47524.75248 | Q103: 0 | R103: 1 | S103: 47277.22772 | T103: 96
C104: 97 | D104: 1000 | E104: 0.5 | F104: 0.05 | G104: -1.644853627 | H104: -0.4255429368 | I104: -1.374178339 | J104: 0 | K104: 0 | M104: 97 | N104: 47524.75248 | O104: 48019.80198 | Q104: 0 | R104: 1 | S104: 47772.27723 | T104: 97
C105: 98 | D105: 1000 | E105: 0.5 | F105: 0.05 | G105: -1.644853627 | H105: -0.5480619969 | I105: -1.487135331 | J105: 0 | K105: 0 | M105: 98 | N105: 48019.80198 | O105: 48514.85149 | Q105: 0 | R105: 1 | S105: 48267.32673 | T105: 98
C106: 99 | D106: 1000 | E106: 0.5 | F106: 0.05 | G106: -1.644853627 | H106: 0.2546294317 | I106: -0.7470903998 | J106: 0 | K106: 0 | M106: 99 | N106: 48514.85149 | O106: 49009.90099 | Q106: 0 | R106: 1 | S106: 48762.37624 | T106: 99
C107: 100 | D107: 1000 | E107: 0.5 | F107: 0.05 | G107: -1.644853627 | H107: -0.6880498581 | I107: -1.616197762 | J107: 0 | K107: 0 | M107: 100 | N107: 49009.90099 | O107: 49504.9505 | Q107: 0 | R107: 1 | S107: 49257.42574 | T107: 100
M108: 101 | N108: 49504.9505 | O108: 50000 | Q108: 0 | R108: 1 | S108: 49752.47525 | T108: 101

Sheet Beispiel
A2: 1-Faktor-Schwellwertmodell
A3: J. Lemm, 2011
C5: Systematisch | F5: Korrelation
C6: M | D6: X | F6: Rho
C7: 1 | D7: =NORMINV(RAND(),0,1) -> -0.8785811351 | F7: 0.5
I8: Min_Loss | J8: Max_Loss | K8: Summe
C9: Kunden | I9: 0 | J9: =SUMPRODUCT(D11:D20,E11:E20) -> 5000 | K9: =SUM(K11:K20) -> 1500
C10: N | D10: EAD(T€) | E10: LGD% | F10: PD | G10: Schwelle | H10: eps_i | I10: y_i | J10: Ausfall | K10: Verlust
C11: 1 | D11: 1000 | E11: 0.5 | F11: 0.1 | G11: =NORMINV(F11,0,1) -> -1.281551566 | H11: =NORMINV(RAND(),0,1) -> -1.154387206 | I11: =SQRT($F$7)*$D$7+SQRT(1-$F$7)*H11 -> -1.4375257 | J11: =IF(I11<=G11,1,0) -> 1 | K11: =J11*E11*D11 -> 500
C12: 2 | D12: 1000 | E12: 0.5 | F12: 0.1 | G12: =NORMINV(F12,0,1) -> -1.281551566 | H12: =NORMINV(RAND(),0,1) -> 1.320291582 | I12: =SQRT($F$7)*$D$7+SQRT(1-$F$7)*H12 -> 0.3123364525 | J12: =IF(I12<=G12,1,0) -> 0 | K12: =J12*E12*D12 -> 0
C13: 3 | D13: 1000 | E13: 0.5 | F13: 0.1 | G13: -1.281551566 | H13: 0.4768723917 | I13: -0.2840509765 | J13: 0 | K13: 0
C14: 4 | D14: 1000 | E14: 0.5 | F14: 0.1 | G14: -1.281551566 | H14: -0.5733974365 | I14: -1.026703894 | J14: 0 | K14: 0
C15: 5 | D15: 1000 | E15: 0.5 | F15: 0.1 | G15: -1.281551566 | H15: 0.3576619518 | I15: -0.368345487 | J15: 0 | K15: 0
C16: 6 | D16: 1000 | E16: 0.5 | F16: 0.1 | G16: -1.281551566 | H16: 1.250121568 | I16: 0.2627187597 | J16: 0 | K16: 0
C17: 7 | D17: 1000 | E17: 0.5 | F17: 0.1 | G17: -1.281551566 | H17: -1.598665713 | I17: -1.751678045 | J17: 1 | K17: 500
C18: 8 | D18: 1000 | E18: 0.5 | F18: 0.1 | G18: -1.281551566 | H18: 0.2502427787 | I18: -0.4443023127 | J18: 0 | K18: 0
C19: 9 | D19: 1000 | E19: 0.5 | F19: 0.1 | G19: -1.281551566 | H19: -0.7063695639 | I19: -1.120729387 | J19: 0 | K19: 0
C20: 10 | D20: 1000 | E20: 0.5 | F20: 0.1 | G20: -1.281551566 | H20: -2.230180129 | I20: -2.198226171 | J20: 1 | K20: 500

Sheet Tabelle3
